Workbook

Sheet Гриндер
A4: № | B4: Байин | C4: Байин в USD | D4: Кросс-курс | E4: Дата | F4: Место | G4: Описание турнира | H4: Кол-во участников (плюс ребаи) | I4: Перелёты | J4: Цена перелёта | K4: Цена перелёта USD | L4: Примечания
A5: 1 | B5: 550 | C5: =B5*D5 -> 550 | D5: 1 | E5: Sat 5 Jan | F5: United States | G5: $ 550 No Limit Hold'em - Deep Stack, Delaware Park, Wilmington | H5: 217
A6: =A5+1 -> 2 | B6: 2150 | C6: =B6*D6 -> 2150 | D6: 1 | E6: Sun 6 Jan | F6: Bahamas | G6: $ 2,000 + 150 No Limit Hold'em - Turbo (Event #3), Atlantis Resort & Casino, Paradise Island | H6: 109 | I6: Delaware-Bahamas | J6: 7800 | K6: =J6/33.3 -> 234.2342342
B7: 1000 | C7: 1000 | D7: 1 | H7: 110
A8: =A6+1 -> 3 | B8: 5200 | C8: 5200 | D8: 1 | E8: Mon 7 Jan | F8: Bahamas | G8: $ 5,000 + 200 No Limit Hold'em - Turbo (Event #7), Atlantis Resort & Casino, Paradise Island | H8: 57
A9: =A8+1 -> 4 | B9: 2150 | C9: 2150 | D9: 1 | E9: Tue 8 Jan | F9: Bahamas | G9: $ 2,000 + 150 No Limit Hold'em - Turbo (Event #13), Atlantis Resort & Casino, Paradise Island | H9: 208
B10: 1000 | C10: 1000 | D10: 1 | H10: 110
A11: =A9+1 -> 5 | B11: 2150 | C11: 2150 | D11: 1 | E11: Wed 9 Jan | F11: Bahamas | G11: $ 2,000 + 150 No Limit Hold'em - Turbo (Event #17), Atlantis Resort & Casino, Paradise Island | H11: 245
A12: =A11+1 -> 6 | B12: 5300 | C12: 5300 | D12: 1 | E12: Thu 10 Jan | F12: Bahamas | G12: $ 5,000 + 300 No Limit Hold'em (Event #18), Atlantis Resort & Casino, Paradise Island | H12: 96
B13: 1000 | C13: 1000 | D13: 1 | H13: 110
A14: =A12+1 -> 7 | B14: 2150 | C14: 2150 | D14: 1 | E14: Fri 11 Jan | F14: Bahamas | G14: $ 2,000 + 150 No Limit Hold'em (Event #23), Atlantis Resort & Casino, Paradise Island | H14: 312
A15: 8 | B15: 5300 | C15: 5300 | D15: 1 | E15: Sun 13 Jan | F15: Bahamas | G15: $ 5,000 + 300 No Limit Hold'em - Six Max (Event #34), Atlantis Resort & Casino, Paradise Island | H15: 44
B16: 1000 | C16: 1000 | D16: 1 | H16: 110
A17: =A15+1 -> 9 | B17: 10300 | C17: 10300 | D17: 1 | E17: Mon 14 Jan | F17: Bahamas | G17: $ 10,000 + 300 No Limit Hold'em - Six Max (Event #40), Atlantis Resort & Casino, Paradise Island | H17: 88
A18: 10 | B18: 1100 | C18: 979 | D18: 0.89 | E18: Thu 17 - Sun 20 Jan | F18: Australia | G18: A$ 1,100 No Limit Hold'em - Day 1 Flight 1, Crown Casino, Melbourne | H18: 1338 | I18: Bahamas - Melbourne | J18: 45500 | K18: =J18/33.3 -> 1366.366366
B19: 1000 | C19: 1000 | D19: 1 | H19: 110
A20: =A18+1 -> 11 | B20: 1100 | C20: 979 | D20: 0.89 | E20: Tue 22 Jan | F20: Australia | G20: A$ 1,100 No Limit Hold'em - Shootout, Crown Casino, Melbourne | H20: 210
A21: 12 | B21: 1100 | C21: 979 | D21: 0.89 | E21: Thu 24 Jan | F21: Australia | G21: A$ 1,100 No Limit Hold'em - Six Max, Crown Casino, Melbourne | H21: 523
B22: 1000 | C22: 1000 | D22: 1 | H22: 110
A23: =A21+1 -> 13 | B23: =1150+3000 -> 4150 | C23: 3693.5 | D23: 0.89 | E23: Fri 25 Jan | F23: Australia | G23: A$ 1,150 No Limit Hold'em - Rebuy, Crown Casino, Melbourne | H23: =83+257 -> 340
A24: 14 | B24: 1650 | C24: 1468.5 | D24: 0.89 | E24: Sat 26 Jan | F24: Australia | G24: A$ 1,650 No Limit Hold'em - Bounty, Crown Casino, Melbourne | H24: 355
B25: 1000 | C25: 1000 | D25: 1 | H25: 110
A26: =A24+1 -> 15 | B26: 10600 | C26: 9434 | D26: 0.89 | E26: Sun 27 Jan | F26: Australia | G26: A$ 10,600 No Limit Hold'em - Main Event, Crown Casino, Melbourne | H26: 629
A27: 16 | B27: 1100 | C27: 979 | D27: 0.89 | E27: Tue 29 Jan | F27: Australia | G27: A$ 1,100 No Limit Hold'em - Terminator, Crown Casino, Melbourne | H27: 203
B28: 1000 | C28: 1000 | D28: 1 | H28: 110
A29: =A27+1 -> 17 | B29: 5000 | C29: 4450 | D29: 0.89 | E29: Thu 31 Jan | F29: Australia | G29: A$ 5,000 No Limit Hold'em - Mix Max, Crown Casino, Melbourne | H29: 36
A30: 18 | B30: 600 | C30: 534 | D30: 0.89 | E30: Sat 2 Feb | F30: Australia | G30: A$ 600 No Limit Hold'em Cubed Turbo, Crown Casino, Melbourne | H30: 94
B31: 1000 | C31: 1000 | D31: 1 | H31: 110
A32: =A30+1 -> 19 | B32: 5000 | C32: 4450 | D32: 0.89 | E32: Sun 3 Feb | F32: Australia | G32: A$ 5,000 No Limit Hold'em - Six Max Turbo, Crown Casino, Melbourne | H32: 42
A33: 20 | B33: 800 | C33: 800 | D33: 1 | E33: Tue 5 Feb | F33: Cyprus | G33: $ 750 + 50 No Limit Hold'em - Bounty, Merit Crystal Cove Hotel-Casino, Kyrenia | H33: =11750/750 -> 15.66666667 | I33: Melbourne - Cyprus | J33: 39000 | K33: 1171.171171 | L33: Число участников получено делением прайзпула на байин
B34: 1000 | C34: 1000 | D34: 1 | H34: 110
A35: =A33+1 -> 21 | B35: 1100 | C35: 1100 | D35: 1 | E35: Wed 6 Feb | F35: Cyprus | G35: $ 1,000 + 100 No Limit Hold'em - Deepstack, Merit Crystal Cove Hotel-Casino, Kyrenia | H35: =41322/1000 -> 41.322 | L35: -"-
A36: 22 | B36: 5000 | C36: 5000 | D36: 1 | E36: Thu 7 - Fri 8 Feb | F36: Cyprus | G36: $ 5,000 No Limit Hold'em - High Roller, Merit Crystal Cove Hotel-Casino, Kyrenia | H36: =(72000+45000+28800+19800+14400)/5000 -> 36 | L36: -"-
B37: 1000 | C37: 1000 | D37: 1 | H37: 110
A38: =A36+1 -> 23 | B38: 2200 | C38: 2200 | D38: 1 | E38: Sat 9 - Sun 10 Feb | F38: Cyprus | G38: LPT $ 2,000 + 200 No Limit Hold'em - Main Event, Merit Crystal Cove Hotel-Casino, Kyrenia | H38: =259440/2000 -> 129.72 | L38: -"-
A39: 24 | B39: 550 | C39: 550 | D39: 1 | E39: Sun 10 Feb | F39: Cyprus | G39: $ 500 + 50 No Limit Hold'em - Bounty, Merit Crystal Cove Hotel-Casino, Kyrenia | H39: =12690/550 -> 23.07272727 | L39: -"-
B40: 1000 | C40: 1000 | D40: 1 | H40: 110
A41: =A39+1 -> 25 | B41: 2600 | C41: 3536 | D41: 1.36 | E41: Fri 15 - Mon 18 Feb | F41: Czech Republic | G41: € 2,600 No Limit Hold'em - Main Event, Kings Casino, Rozvadov | H41: 220 | I41: Cyprus-Czech Rep. | J41: 6369 | K41: 191.2612613
A42: 26 | B42: 1100 | C42: 1496 | D42: 1.36 | E42: Sun 17 Feb | F42: Czech Republic | G42: € 1,100 No Limit Hold'em - 100 Grand Event, Kings Casino, Rozvadov | H42: 95
B43: 1000 | C43: 1000 | D43: 1 | H43: 110
A44: =A42+1 -> 27 | B44: 3500 | C44: 4760 | D44: 1.36 | E44: Tue 19 - Sun 24 Feb | F44: Austria | G44: WPT € 3,500 No Limit Hold'em - WPT Main Event, Casinos Austria, Baden | H44: 254 | I44: Czech Rep. - Austria | J44: 5400 | K44: 162.1621622
A45: 28 | B45: 1100 | C45: 1496 | D45: 1.36 | E45: Thu 21 - Fri 22 Feb | F45: Austria | G45: € 1,100 No Limit Hold'em - 8 Max, Casinos Austria, Baden | H45: 34
B46: 1000 | C46: 1000 | D46: 1 | H46: 110
A47: =A45+1 -> 29 | B47: 550 | C47: 748 | D47: 1.36 | E47: Fri 22 Feb | F47: Austria | G47: € 550 No Limit Hold'em, Casinos Austria, Baden | H47: 72
A48: 30 | B48: 450 | C48: 612 | D48: 1.36 | E48: Sat 23 Feb | F48: Austria | G48: € 450 No Limit Hold'em - Turbo, Casinos Austria, Baden | H48: =9942/400 -> 24.855 | L48: -"-
B49: 1000 | C49: 1000 | D49: 1 | H49: 110
A50: =A48+1 -> 31 | B50: 1100 | C50: 1100 | D50: 1 | E50: Mon 25 - Tue 26 Feb | F50: Cyprus | G50: $ 1,000 + 100 No Limit Hold'em - Ultra Deepstack 6 Max, Merit Crystal Cove Hotel-Casino, Kyrenia | H50: =78569/1000 -> 78.569 | I50: Austria - Cyprus | J50: 5300 | K50: 159.1591592 | L50: -"-
A51: 32 | B51: 800 | C51: 800 | D51: 1 | E51: Tue 26 Feb | F51: Cyprus | G51: $ 750 + 50 No Limit Hold'em - Bounty, Merit Crystal Cove Hotel-Casino, Kyrenia | H51: =(11770+7427+5682+4262+3003+2354+1826+1623+1421+1218)/750 -> 54.11466667 | L51: -"-
B52: 1000 | C52: 1000 | D52: 1 | H52: 110
A53: =A51+1 -> 33 | B53: 1100 | C53: 1100 | D53: 1 | E53: Wed 27 Feb | F53: Cyprus | G53: $ 1,000 + 100 No Limit Hold'em - Deepstack, Merit Crystal Cove Hotel-Casino, Kyrenia | H53: =70809/1000 -> 70.809 | L53: -"-
A54: 34 | B54: 550 | C54: 550 | D54: 1 | E54: Thu 28 Feb | F54: Cyprus | G54: $ 500 + 50 No Limit Hold'em - 6 Max Hyper Turbo, Merit Crystal Cove Hotel-Casino, Kyrenia | H54: =31526/500 -> 63.052 | L54: -"-
B55: 1000 | C55: 1000 | D55: 1 | H55: 110
A56: =A54+1 -> 35 | B56: 2200 | C56: 2200 | D56: 1 | E56: Fri 1 - Tue 5 Mar | F56: Cyprus | G56: WPTN $ 2,000 + 200 No Limit Hold'em - WPT Cyprus National Event, Merit Crystal Cove Hotel-Casino, Kyrenia | H56: =(115000+80000+50000+36237+28000+22500+18000+14000+11000+8500+8500+8500+6600*3+5700*3+5000*3+4400*3+4000*3)/2000 -> 238.6685 | L56: -"-
A57: 36 | B57: 2000 | C57: 2000 | D57: 1 | E57: Sun 3 Mar | F57: Cyprus | G57: $ 2,000 No Limit Hold'em - VIP Event, Merit Crystal Cove Hotel-Casino, Kyrenia | H57: =61200/2000 -> 30.6
B58: 1000 | C58: 1000 | D58: 1 | H58: 110
A59: =A57+1 -> 37 | B59: 770 | C59: 1270.5 | D59: 1.65 | E59: Tue 5 - Sun 10 Mar | F59: England | G59: UKIPT £ 700 + 70 No Limit Hold'em - UKIPT, Grosvenor Victoria Casino, London | H59: 1099 | I59: Cyprus-London | J59: 2300 | K59: 69.06906907
A60: 38 | B60: 1100 | C60: 1815 | D60: 1.65 | E60: Fri 8 Mar | F60: England | G60: £ 1,000 + 100 No Limit Hold'em Turbo - Win the Button, Grosvenor Victoria Casino, London | H60: 65
B61: 1000 | C61: 1000 | D61: 1 | H61: 110
A62: =A60+1 -> 39 | B62: 2150 | C62: 3547.5 | D62: 1.65 | E62: Sat 9 - Sun 10 Mar | F62: England | G62: £ 2,000 + 150 No Limit Hold'em - UKIPT High Roller, Grosvenor Victoria Casino, London | H62: 219
A63: 40 | B63: 5250 | C63: 8662.5 | D63: 1.65 | E63: Sun 10 - Sat 16 Mar | F63: England | G63: EPT £ 5,000 + 250 No Limit Hold'em - EPT Main Event, Grosvenor Victoria Casino, London | H63: 647
B64: 1000 | C64: 1000 | D64: 1 | H64: 110
A65: =A63+1 -> 41 | B65: 2150 | C65: 3547.5 | D65: 1.65 | E65: Tue 12 - Wed 13 Mar | F65: England | G65: £ 2,000 + 150 No Limit Hold'em, Grosvenor Victoria Casino, London | H65: 172
A66: 42 | B66: 1100 | C66: 1815 | D66: 1.65 | E66: Wed 13 Mar | F66: England | G66: £ 1,000 + 100 No Limit Hold'em, Grosvenor Victoria Casino, London | H66: 168
B67: 1000 | C67: 1000 | D67: 1 | H67: 110
A68: =A66+1 -> 43 | B68: 1100 | C68: 1815 | D68: 1.65 | E68: Thu 14 Mar | F68: England | G68: £ 1,000 + 100 No Limit Hold'em - Turbo, Grosvenor Victoria Casino, London | H68: 70
A69: 44 | B69: 550 | C69: 907.5 | D69: 1.65 | E69: Fri 15 Mar | F69: England | G69: £ 500 + 50 No Limit Hold'em Deepstack, Grosvenor Victoria Casino, London | H69: 105
B70: 1000 | C70: 1000 | D70: 1 | H70: 110
A71: =A69+1 -> 45 | B71: 2100 | C71: 3465 | D71: 1.65 | E71: Sat 16 Mar | F71: England | G71: £ 2,000 + 100 No Limit Hold'em - Six Handed II, Grosvenor Victoria Casino, London | H71: 62
A72: 46 | B72: 500 | C72: 680 | D72: 1.36 | E72: Tue 19 - Thu 21 Mar | F72: France | G72: € 450 + 50 No Limit Hold'em - Deepstack, Casino Evian, Rhone-Alps | H72: 41 | I72: London - France | J72: 2100 | K72: 63.06306306
B73: 1000 | C73: 1000 | D73: 1 | H73: 110
A74: =A72+1 -> 47 | B74: 1100 | C74: 1496 | D74: 1.36 | E74: Thu 21 - Sun 24 Mar | F74: France | G74: FPS € 1,000 + 100 No Limit Hold'em - Main Event, Casino Evian, Rhone-Alps | H74: 280
A75: 48 | B75: 3000 | C75: 4080 | D75: 1.36 | E75: Sat 23 - Sun 24 Mar | F75: France | G75: € 2,700 + 300 No Limit Hold'em - High Roller, Casino Evian, Rhone-Alps | H75: 28
B76: 1000 | C76: 1000 | D76: 1 | H76: 110
A77: =A75+1 -> 49 | B77: 330 | C77: 448.8 | D77: 1.36 | E77: Sun 24 Mar | F77: France | G77: € 300 + 300 No Limit Hold'em - Win the Button, Casino Evian, Rhone-Alps | H77: 42
A78: 50 | B78: 3000 | C78: 4080 | D78: 1.36 | E78: Mon 25 - Sat 30 Mar | F78: Italy | G78: WPT € 3,000 + 300 No Limit Hold'em - WPT Grand Prix, Casino Di Venezia, Venice | H78: 173 | I78: France - Venice | J78: 1300 | K78: 39.03903904
B79: 1000 | C79: 1000 | D79: 1 | H79: 110
A80: =A78+1 -> 51 | B80: 800 | C80: 800 | D80: 1 | E80: Tue 2 Apr | F80: Cyprus | G80: $ 750 + 50 No Limit Hold'em - Bounty, Merit Crystal Cove Hotel-Casino, Kyrenia | H80: 78 | I80: Venice - Cyprus | J80: 4700 | K80: 141.1411411
A81: 52 | B81: 1100 | C81: 1100 | D81: 1 | E81: Wed 3 Apr | F81: Cyprus | G81: $ 1,000 + 100 No Limit Hold'em - Deepstack, Merit Crystal Cove Hotel-Casino, Kyrenia | H81: 79
B82: 1000 | C82: 1000 | D82: 1 | H82: 110
A83: =A81+1 -> 53 | B83: 1000 | C83: 1000 | D83: 1 | E83: Thu 4 Apr | F83: Cyprus | G83: $ 1,000 No Limit Hold'em - Ante Up, Merit Crystal Cove Hotel-Casino, Kyrenia | H83: 75
A84: 54 | B84: 5500 | C84: 5500 | D84: 1 | E84: Sat 6 Apr | F84: Cyprus | G84: LPT $ 5,000 + 500 No Limit Hold'em - Championship Event, Merit Crystal Cove Hotel-Casino, Kyrenia | H84: 134
B85: 1000 | C85: 1000 | D85: 1 | H85: 110
A86: =A84+1 -> 55 | B86: 660 | C86: 660 | D86: 1 | E86: Tue 9 Apr | F86: Cyprus | G86: $ 600 + 60 No Limit Hold'em - Deepstack, Merit Crystal Cove Hotel-Casino, Kyrenia | H86: 57
A87: 56 | B87: 1650 | C87: 2244 | D87: 1.36 | E87: Thu 11 Apr | F87: Spain | G87: WPTN € 1,500 + 150 No Limit Hold'em - WPT National, Casino Marbella, Marbella | H87: 236 | I87: Cyprus - Spain | J87: 8400 | K87: 252.2522523
B88: 1000 | C88: 1000 | D88: 1 | H88: 110
A89: =A87+1 -> 57 | B89: 550 | C89: 748 | D89: 1.36 | E89: Fri 12 Apr | F89: Spain | G89: € 500 + 50 No Limit Hold'em, Casino Marbella, Marbella | H89: 100
A90: 58 | B90: 1100 | C90: 1496 | D90: 1.36 | E90: Sun 14 Apr | F90: Spain | G90: € 1,000 + 100 No Limit Hold'em - CPT Event, Casino Marbella, Marbella | H90: 180
B91: 1000 | C91: 1000 | D91: 1 | H91: 110
A92: =A90+1 -> 59 | B92: 1100 | C92: =B92*D92 -> 1496 | D92: 1.36 | E92: Wed 17 - Sun 21 Apr | F92: Germany | G92: € 1,000 + 100 No Limit Hold'em - Berlin Cup, Grand Hyatt Berlin, Berlin | H92: 911 | I92: Spain - Berlin | J92: 4700 | K92: 141.1411411
A93: 60 | B93: 1100 | C93: 1496 | D93: 1.36 | E93: Fri 19 Apr | F93: Germany | G93: € 1,000 + 100 No Limit Hold'em - Turbo, Grand Hyatt Berlin, Berlin | H93: 174
B94: 1000 | C94: 1000 | D94: 1 | H94: 110
A95: =A93+1 -> 61 | B95: 3200 | C95: 4352 | D95: 1.36 | E95: Sat 20 - Sun 21 Apr | F95: Germany | G95: € 3,000 + 200 No Limit Hold'em - Berlin Cup High Roller, Grand Hyatt Berlin, Berlin | H95: 194
A96: 62 | B96: 2100 | C96: 2856 | D96: 1.36 | E96: Mon 22 Apr | F96: Germany | G96: € 2,000 + 100 No Limit Hold'em - Eight Handed, Grand Hyatt Berlin, Berlin | H96: 138
B97: 1000 | C97: 1000 | D97: 1 | H97: 110
A98: =A96+1 -> 63 | B98: 2150 | C98: 2924 | D98: 1.36 | E98: Tue 23 Apr | F98: Germany | G98: € 2,000 + 150 No Limit Hold'em, Grand Hyatt Berlin, Berlin | H98: 237
A99: 64 | B99: 1100 | C99: 1496 | D99: 1.36 | E99: Wed 24 Apr | F99: Germany | G99: € 1,000 + 100 No Limit Hold'em, Grand Hyatt Berlin, Berlin | H99: 275
B100: 1000 | C100: 1000 | D100: 1 | H100: 110
A101: =A99+1 -> 65 | B101: 1100 | C101: 1496 | D101: 1.36 | E101: Thu 25 Apr | F101: Germany | G101: € 1,000 + 100 No Limit Hold'em Six Handed - Win the Button, Grand Hyatt Berlin, Berlin | H101: 114
A102: 66 | B102: 1100 | C102: 1496 | D102: 1.36 | E102: Fri 26 Apr | F102: Germany | G102: € 1,000 + 100 No Limit Hold'em - Turbo, Grand Hyatt Berlin, Berlin | H102: 115
B103: 1000 | C103: 1000 | D103: 1 | H103: 110
A104: =A102+1 -> 67 | B104: 5250 | C104: 7140 | D104: 1.36 | E104: Sat 27 Apr | F104: Germany | G104: € 5,000 + 250 No Limit Hold'em Turbo - Six Handed, Grand Hyatt Berlin, Berlin | H104: 40
A105: =A104+1 -> 68 | B105: 550 | C105: 550 | D105: 1 | E105: Mon 29 Apr | F105: Cyprus | G105: $ 500 + 50 No Limit Hold'em - 6 Max, Merit Crystal Cove Hotel-Casino, Kyrenia | H105: =71+24 -> 95 | I105: Berlin - Cyprus | J105: 6600 | K105: =J105/33.3 -> 198.1981982
B106: 1000 | C106: 1000 | D106: 1 | H106: 110
A107: =A105+1 -> 69 | B107: 550 | C107: 550 | D107: 1 | E107: Tue 30 Apr | F107: Cyprus | G107: $ 500 + 50 No Limit Hold'em - Re-Entry, Merit Crystal Cove Hotel-Casino, Kyrenia | H107: =69+12 -> 81
A108: 70 | B108: 660 | C108: 660 | D108: 1 | E108: Wed 1 May | F108: Cyprus | G108: $ 600 + 60 No Limit Hold'em - Early Ante, Merit Crystal Cove Hotel-Casino, Kyrenia | H108: =97+33 -> 130
B109: 1000 | C109: 1000 | D109: 1 | H109: 110
A110: =A108+1 -> 71 | B110: 3300 | C110: 3300 | D110: 1 | E110: Sat 4 - Mon 6 May | F110: Cyprus | G110: $ 3,000 + 300 No Limit Hold'em - Main Event, Merit Crystal Cove Hotel-Casino, Kyrenia | H110: =160+58 -> 218
A111: 72 | B111: 5200 | C111: 7072 | D111: 1.36 | E111: Tue 7 May | F111: Monaco | G111: € 5,000 + 200 No Limit Hold'em - Eight Handed Turbo, Monte Carlo Bay Hotel & Resort, Monte Carlo | H111: 36 | I111: Cyprus - Monaco | J111: 8100 | K111: 243.2432432
B112: 1000 | C112: 1000 | D112: 1 | H112: 110
A113: =A111+1 -> 73 | B113: 5300 | C113: 7208 | D113: 1.36 | E113: Wed 8 - Thu 9 May | F113: Monaco | G113: € 5,000 + 300 No Limit Hold'em - Eight Handed, Monte Carlo Bay Hotel & Resort, Monte Carlo | H113: 151
A114: 74 | B114: 1100 | C114: 1496 | D114: 1.36 | E114: Fri 10 May | F114: Monaco | G114: € 1,000 + 100 No Limit Hold'em - Six Handed, Monte Carlo Bay Hotel & Resort, Monte Carlo | H114: 180
B115: 1000 | C115: 1000 | D115: 1 | H115: 110
A116: =A114+1 -> 75 | B116: 1100 | C116: 1496 | D116: 1.36 | E116: Sat 11 - Wed 15 May | F116: Monaco | G116: € 1,000 + 100 Monaco Cup - No Limit Hold'em - Re-Entry €500,000 Guaranteed,Monte Carlo Bay Hotel & Resort, Monte Carlo | H116: 287
A117: 76 | B117: 1100 | C117: 1496 | D117: 1.36 | E117: Mon 13 May | F117: Monaco | G117: € 1,000 + 100 No Limit Hold'em - Turbo, Monte Carlo Bay Hotel & Resort, Monte Carlo | H117: 47
B118: 1000 | C118: 1000 | D118: 1 | H118: 110
A119: =A117+1 -> 77 | B119: 1100 | C119: 1496 | D119: 1.36 | E119: Tue 14 - Wed 15 May | F119: Monaco | G119: € 1,000 + 100 No Limit Hold'em - Eight Handed, Monte Carlo Bay Hotel & Resort, Monte Carlo | H119: 40
A120: 78 | B120: 2100 | C120: 2856 | D120: 1.36 | E120: Wed 15 May | F120: Monaco | G120: € 2,000 + 100 No Limit Hold'em - Eight Handed Turbo, Monte Carlo Bay Hotel & Resort, Monte Carlo | H120: 28
B121: 1000 | C121: 1000 | D121: 1 | H121: 110
A122: =A120+1 -> 79 | B122: 1100 | C122: 1100 | D122: 1 | E122: Fri 24 May | F122: United States | G122: $ 1,000 + 100 No Limit Hold'em - Main Event - Re-Entry, Bicycle Casino, Los Angeles | H122: 369 | I122: Monaco - LA | J122: 41700 | K122: 1252.252252
A123: 80 | B123: 600 | C123: =B123*D123 -> 600 | D123: 1 | E123: Sat 25 May | F123: United States | G123: $ 600 No Limit Hold'em - 1A, The Palazzo Las Vegas, Las Vegas | H123: 275 | I123: LA-Las Vegas | J123: 1300 | K123: 39.03903904
B124: 1000 | C124: 1000 | D124: 1 | H124: 110
A125: =A123+1 -> 81 | B125: 540 | C125: 540 | D125: 1 | E125: Sun 26 May | F125: United States | G125: $ 540 No Limit Hold'em, Orleans Hotel & Casino, Las Vegas | H125: 51
A126: 82 | B126: 500 | C126: 500 | D126: 1 | E126: Tue 28 May | F126: United States | G126: $ 500 No Limit Hold'em, The Palazzo Las Vegas, Las Vegas | H126: 152
B127: 1000 | C127: 1000 | D127: 1 | H127: 110
A128: =A126+1 -> 83 | B128: 5000 | C128: 5000 | D128: 1 | E128: Wed 29 May - Sat 1 Jun | F128: United States | G128: WSOP $ 5,000 No Limit Hold'em - 8 Handed (Event #2), Rio Hotel and Casino, Las Vegas | H128: 481
A129: 84 | B129: 1000 | C129: 1000 | D129: 1 | E129: Thu 30 May | F129: United States | G129: WSOP $ 1,000 No Limit Hold'em (Event #3), Rio Hotel and Casino, Las Vegas | H129: 3164
B130: 1000 | C130: 1000 | D130: 1 | H130: 110
A131: =A129+1 -> 85 | B131: 1500 | C131: 1500 | D131: 1 | E131: Sat 1 - Mon 3 Jun | F131: United States | G131: WSOP $ 1,500 No Limit Hold'em - Millionaire Maker (Event #6), Rio Hotel and Casino, Las Vegas | H131: 6343
A132: 86 | B132: 3000 | C132: 3000 | D132: 1 | E132: Mon 3 - Wed 5 Jun | F132: United States | G132: WSOP $ 3,000 No Limit Hold'em - Shootout (Event #9), Rio Hotel and Casino, Las Vegas | H132: 477
B133: 1000 | C133: 1000 | D133: 1 | H133: 110
A134: =A132+1 -> 87 | B134: 2500 | C134: 2500 | D134: 1 | E134: Tue 4 - Thu 6 Jun | F134: United States | G134: WSOP $ 2,500 No Limit Hold'em - 6 Handed (Event #11), Rio Hotel and Casino, Las Vegas | H134: 924
A135: 88 | B135: 500 | C135: 500 | D135: 1 | E135: Thu 6 Jun | F135: United States | G135: $ 500 No Limit Hold'em, The Palazzo Las Vegas, Las Vegas | H135: 303
B136: 1000 | C136: 1000 | D136: 1 | H136: 110
A137: =A135+1 -> 89 | B137: 2500 | C137: 2500 | D137: 1 | E137: Fri 7 Jun | F137: United States | G137: $ 2,500 No Limit Hold'em, The Palazzo Las Vegas, Las Vegas | H137: 91
A138: 90 | B138: 1500 | C138: 1500 | D138: 1 | E138: Sat 8 - Mon 10 Jun | F138: United States | G138: WSOP $ 1,500 No Limit Hold'em (Event #17), Rio Hotel and Casino, Las Vegas | H138: 2105
B139: 1000 | C139: 1000 | D139: 1 | H139: 110
A140: =A138+1 -> 91 | B140: 1000 | C140: 1000 | D140: 1 | E140: Sun 9 - Tue 11 Jun | F140: United States | G140: WSOP $ 1,000 No Limit Hold'em (Event #18), Rio Hotel and Casino, Las Vegas | H140: 2071
A141: 92 | B141: 3000 | C141: 3000 | D141: 1 | E141: Tue 11 - Thu 13 Jun | F141: United States | G141: WSOP $ 3,000 No Limit Hold'em - 6 Handed (Event #21), Rio Hotel and Casino, Las Vegas | H141: 807
B142: 1000 | C142: 1000 | D142: 1 | H142: 110
A143: =A141+1 -> 93 | B143: 1500 | C143: 1500 | D143: 1 | E143: Thu 13 - Sat 15 Jun | F143: United States | G143: WSOP $ 1,500 No Limit Hold'em (Event #24), Rio Hotel and Casino, Las Vegas | H143: 1731
A144: 94 | B144: 1500 | C144: 1500 | D144: 1 | E144: Sat 15 - Mon 17 Jun | F144: United States | G144: WSOP $ 1,500 No Limit Hold'em (Event #28), Rio Hotel and Casino, Las Vegas | H144: 2115
B145: 1000 | C145: 1000 | D145: 1 | H145: 110
A146: =A144+1 -> 95 | B146: 1000 | C146: 1000 | D146: 1 | E146: Sun 16 - Tue 18 Jun | F146: United States | G146: WSOP $ 1,000 No Limit Hold'em (Event #30), Rio Hotel and Casino, Las Vegas | H146: 2108
A147: 96 | B147: 5000 | C147: 5000 | D147: 1 | E147: Tue 18 - Thu 20 Jun | F147: United States | G147: WSOP $ 5,000 No Limit Hold'em - 6 Handed (Event #32), Rio Hotel and Casino, Las Vegas | H147: 516
B148: 1000 | C148: 1000 | D148: 1 | H148: 110
A149: =A147+1 -> 97 | B149: 1000 | C149: 1000 | D149: 1 | E149: Wed 19 - Fri 21 Jun | F149: United States | G149: WSOP $ 1,000 No Limit Hold'em - Turbo (Event #34), Rio Hotel and Casino, Las Vegas | H149: 1629
A150: 98 | B150: 2500 | C150: 2500 | D150: 1 | E150: Fri 21 - Sun 23 Jun | F150: United States | G150: WSOP $ 2,500 No Limit Hold'em - 4 Handed (Event #38), Rio Hotel and Casino, Las Vegas | H150: 566
B151: 1000 | C151: 1000 | D151: 1 | H151: 110
A152: =A150+1 -> 99 | B152: 1500 | C152: 1500 | D152: 1 | E152: Sat 22 - Mon 24 Jun | F152: United States | G152: WSOP $ 1,500 No Limit Hold'em (Event #40), Rio Hotel and Casino, Las Vegas | H152: 2161
A153: 100 | B153: 3000 | C153: 3000 | D153: 1 | E153: Mon 24 - Wed 26 Jun | F153: United States | G153: WSOP $ 3,000 No Limit Hold'em (Event #44), Rio Hotel and Casino, Las Vegas | H153: 1072
B154: 1000 | C154: 1000 | D154: 1 | H154: 110
A155: =A153+1 -> 101 | B155: 1500 | C155: 1500 | D155: 1 | E155: Tue 25 - Wed 26 Jun | F155: United States | G155: WSOP $ 1,500 No Limit Hold'em - Ante Only (Event #45), Rio Hotel and Casino, Las Vegas | H155: 678
A156: 102 | B156: 1500 | C156: 1500 | D156: 1 | E156: Thu 27 - Sat 29 Jun | F156: United States | G156: WSOP $ 1,500 No Limit Hold'em (Event #49), Rio Hotel and Casino, Las Vegas | H156: 2247
B157: 1000 | C157: 1000 | D157: 1 | H157: 110
A158: =A156+1 -> 103 | B158: 1000 | C158: 1000 | D158: 1 | E158: Fri 28 - Sun 30 Jun | F158: United States | G158: WSOP $ 1,000 No Limit Hold'em - Ladies Championships (Event #51), Rio Hotel and Casino, Las Vegas | H158: 954
A159: 104 | B159: 1500 | C159: 1500 | D159: 1 | E159: Sat 29 Jun - Mon 1 Jul | F159: United States | G159: WSOP $ 1,500 No Limit Hold'em (Event #53), Rio Hotel and Casino, Las Vegas | H159: 2816
B160: 1000 | C160: 1000 | D160: 1 | H160: 110
A161: =A159+1 -> 105 | B161: 2500 | C161: 2500 | D161: 1 | E161: Mon 1 - Wed 3 Jul | F161: United States | G161: WSOP $ 2,500 No Limit Hold'em (Event #56), Rio Hotel and Casino, Las Vegas | H161: 1736
A162: 106 | B162: 5000 | C162: 5000 | D162: 1 | E162: Tue 2 - Thu 4 Jul | F162: United States | G162: WSOP $ 5,000 No Limit Hold'em (Event #57), Rio Hotel and Casino, Las Vegas | H162: 784
B163: 1000 | C163: 1000 | D163: 1 | H163: 110
A164: =A162+1 -> 107 | B164: 500 | C164: 500 | D164: 1 | E164: Thu 4 Jul | F164: United States | G164: $ 500 No Limit Hold'em, The Palazzo Las Vegas, Las Vegas | H164: 333
A165: 108 | B165: 1500 | C165: 1500 | D165: 1 | E165: Fri 5 - Sun 7 Jul | F165: United States | G165: WSOP $ 1,500 No Limit Hold'em (Event #60), Rio Hotel and Casino, Las Vegas | H165: 2541
B166: 1000 | C166: 1000 | D166: 1 | H166: 110
A167: =A165+1 -> 109 | B167: 10000 | C167: 10000 | D167: 1 | E167: Sat 6 - Mon 15 Jul | F167: United States | G167: WSOP $ 10,000 World Championship - No Limit Hold'em Day (Event #62), Rio Hotel and Casino, Las Vegas | H167: 6352
A168: 110 | B168: 1600 | C168: 1600 | D168: 1 | E168: Wed 10 Jul | F168: United States | G168: $ 1,600 No Limit Hold'em, The Palazzo Las Vegas, Las Vegas | H168: 110
B169: 1000 | C169: 1000 | D169: 1 | H169: 110
A170: =A168+1 -> 111 | B170: 1675 | C170: 1675 | D170: 1 | E170: Thu 11 Jul | F170: United States | G170: $ 1,675 No Limit Hold'em - Main Event, Rio Hotel and Casino, Las Vegas | H170: 250
A171: 112 | B171: 2620 | C171: 2620 | D171: 1 | E171: Fri 12 Jul | F171: United States | G171: $ 2,500 + 120 No Limit Hold'em, Bellagio, Las Vegas | H171: 79
B172: 1000 | C172: 1000 | D172: 1 | H172: 110
A173: =A171+1 -> 113 | B173: 5000 | C173: 5000 | D173: 1 | E173: Sat 13 Jul | F173: United States | G173: $ 5,000 No Limit Hold'em - Main Event, The Palazzo Las Vegas, Las Vegas | H173: 262
A174: 114 | B174: 1080 | C174: 1080 | D174: 1 | E174: Mon 15 Jul | F174: United States | G174: $ 1,000 + 80 No Limit Hold'em - Turbo, Bellagio, Las Vegas | H174: 52
B175: 1000 | C175: 1000 | D175: 1 | H175: 110
A176: =A174+1 -> 115 | B176: 660 | C176: 660 | D176: 1 | E176: Fri 19 Jul | F176: Cyprus | G176: $ 600 + 60 No Limit Hold'em - World Cup Warm Up, Merit Crystal Cove Hotel-Casino, Kyrenia | H176: =(50050+28105+19050+13400+10020+7708+5940+4380+3153+2453+2453*2+2102*3)/600 -> 259.1183333 | I176: LV - Cyprus | J176: 31900 | K176: 957.957958
A177: 116 | B177: 10000 | C177: 10000 | D177: 1 | E177: Sun 21 Jul | F177: Cyprus | G177: $ 10,000 No Limit Hold'em - World Cup Super High Roller, Merit Crystal Cove Hotel-Casino, Kyrenia | H177: =(10000+67500+43200+33700+25600)/9000 -> 20
B178: 1000 | C178: 1000 | D178: 1 | H178: 110
A179: =A177+1 -> 117 | B179: 550 | C179: 550 | D179: 1 | E179: Tue 23 Jul | F179: Cyprus | G179: $ 500 + 50 No Limit Hold'em - Re-Entry, Merit Crystal Cove Hotel-Casino, Kyrenia | H179: =(9846+7299+5432+4159+3140+2377+1698)/485 -> 70.00206186
A180: 118 | B180: 1100 | C180: 1100 | D180: 1 | E180: Wed 24 Jul | F180: Cyprus | G180: $ 1,000 + 100 No Limit Hold'em - Bounty, Merit Crystal Cove Hotel-Casino, Kyrenia | H180: =(16845+10829+8025+5715+4211+3309+2707+2406+2106+1805+1101+1101)/970 -> 62.02061856
B181: 1000 | C181: 1000 | D181: 1 | H181: 110
A182: =A180+1 -> 119 | B182: 550 | C182: 550 | D182: 1 | E182: Thu 25 Jul | F182: Cyprus | G182: $ 500 + 50 No Limit Hold'em - 6 Max Hyper Turbo, Merit Crystal Cove Hotel-Casino, Kyrenia | H182: 97
A183: 120 | B183: 1100 | C183: 1100 | D183: 1 | E183: Fri 26 Jul | F183: Cyprus | G183: $ 1,000 + 100 No Limit Hold'em - Turbo Deepstack, Merit Crystal Cove Hotel-Casino, Kyrenia | H183: =116+25 -> 141
B184: 1000 | C184: 1000 | D184: 1 | H184: 110
A185: =A183+1 -> 121 | B185: 3300 | C185: 3300 | D185: 1 | E185: Sat 27 - Tue 30 Jul | F185: Cyprus | G185: $ 3,000 + 300 No Limit Hold'em - Main Event, Merit Crystal Cove Hotel-Casino, Kyrenia | H185: =193+108 -> 301
A186: 122 | B186: 660 | C186: 660 | D186: 1 | E186: Tue 30 Jul | F186: Cyprus | G186: $ 600 + 60 No Limit Hold'em - 6 Max Deepstack, Merit Crystal Cove Hotel-Casino, Kyrenia | H186: 93
B187: 1000 | C187: 1000 | D187: 1 | H187: 110
A188: =A186+1 -> 123 | B188: 1100 | C188: 1100 | D188: 1 | E188: Mon 12 - Fri 16 Aug | F188: Cyprus | G188: $ 1,000 + 100 No Limit Hold'em - Warm-Up, Merit Crystal Cove Hotel-Casino, Kyrenia | H188: =174+120 -> 294
A189: 124 | B189: 1100 | C189: 1100 | D189: 1 | E189: Thu 15 Aug | F189: Cyprus | G189: $ 1,000 + 100 No Limit Hold'em - Shootout, Merit Crystal Cove Hotel-Casino, Kyrenia | H189: 52
B190: 1000 | C190: 1000 | D190: 1 | H190: 110
A191: =A189+1 -> 125 | B191: 4400 | C191: 4400 | D191: 1 | E191: Fri 16 - Wed 21 Aug | F191: Cyprus | G191: WPT $ 4,000 + 400 No Limit Hold'em - Main Event, Merit Crystal Cove Hotel-Casino, Kyrenia | H191: 262
A192: 126 | B192: 2200 | C192: 2200 | D192: 1 | E192: Sun 18 - Mon 19 Aug | F192: Cyprus | G192: $ 2,000 + 200 No Limit Hold'em - Big Stack Challenge, Merit Crystal Cove Hotel-Casino, Kyrenia | H192: =62+17 -> 79
B193: 1000 | C193: 1000 | D193: 1 | H193: 110
A194: =A192+1 -> 127 | B194: 10000 | C194: 10000 | D194: 1 | E194: Mon 19 - Tue 20 Aug | F194: Cyprus | G194: $ 10,000 No Limit Hold'em - High Roller, Merit Crystal Cove Hotel-Casino, Kyrenia | H194: 69
A195: 128 | B195: 1600 | C195: 1600 | D195: 1 | E195: Tue 20 Aug | F195: Cyprus | G195: $ 1,500 + 100 No Limit Hold'em - Bounty, Merit Crystal Cove Hotel-Casino, Kyrenia | H195: 62
B196: 1000 | C196: 1000 | D196: 1 | H196: 110
A197: =A195+1 -> 129 | B197: 1000 | C197: 1000 | D197: 1 | E197: Wed 21 Aug | F197: Cyprus | G197: $ 1,000 No Limit Hold'em - Rebuy, Merit Crystal Cove Hotel-Casino, Kyrenia | H197: 38
A198: 130 | B198: 880 | C198: 880 | D198: 1 | E198: Thu 22 - Sun 25 Aug | F198: Cyprus | G198: $ 800 + 80 No Limit Hold'em - Masters Event, Merit Crystal Cove Hotel-Casino, Kyrenia | H198: =197+20 -> 217
B199: 1000 | C199: 1000 | D199: 1 | H199: 110
A200: =A198+1 -> 131 | B200: 550 | C200: 550 | D200: 1 | E200: Sun 25 Aug | F200: Cyprus | G200: $ 500 + 50 No Limit Hold'em - Double Chance, Merit Crystal Cove Hotel-Casino, Kyrenia | H200: =56+14 -> 70
A201: =A200+1 -> 132 | B201: 1100 | C201: 1496 | D201: 1.36 | E201: Wed 28 Aug - Sun 1 Sep | F201: Spain | G201: ESTPT € 1,000 + 100 No Limit Hold'em - Estrellas Main Event, Casino Barcelona, Barcelona | H201: 1798 | I201: Cyprus - Barcelona | J201: 10000 | K201: =J201/33.3 -> 300.3003003
B202: 1000 | C202: 1000 | D202: 1 | H202: 110
A203: =A201+1 -> 133 | B203: 2000 | C203: 2720 | D203: 1.36 | E203: Sat 31 Aug - Sun 1 Sep | F203: Spain | G203: € 1,850 + 150 No Limit Hold'em - High Roller, Casino Barcelona, Barcelona | H203: 521
... 94 more rows
